bitfinex/quotes_BTCUSD_20250716
["timestamp","ask_amount","ask_price","bid_price","bid_amount"]
[1752691239007,0.60054677,119570.0,119560.0,0.66289402]
[1752691239746,0.20902622,119570.0,119560.0,0.68273167]
[1752691239955,0.04176012,119570.0,119560.0,0.69945883]
[1752691240177,0.03963012,119570.0,119560.0,0.71565883]
[1752691240950,0.03963012,119570.0,119560.0,0.57349883]
[1752691241200,0.01454085,119570.0,119560.0,1.12253938]
[1752691241941,0.02290352,119570.0,119560.0,1.12253938]
[1752691242171,0.01454085,119570.0,119560.0,0.73101883]
[1752691242408,0.01454085,119570.0,119560.0,1.12253938]
[1752691242845,0.0312664,119570.0,119560.0,0.73101883]
[1752691243299,0.02290352,119570.0,119560.0,0.73101883]
[1752691243538,0.03126633,119570.0,119560.0,0.73101883]
[1752691243772,0.01454085,119570.0,119560.0,0.73101883]
[1752691244681,0.02290359,119570.0,119560.0,0.73101883]
[1752691245382,0.01454085,119570.0,119560.0,0.73101883]
[1752691245814,0.0168068,119590.0,119580.0,0.52397689]
[1752691246038,0.03970941,119590.0,119580.0,0.70267689]
[1752691246454,0.04807124,119590.0,119580.0,0.71103907]
[1752691246667,0.04807124,119590.0,119580.0,0.71940118]
[1752691246883,0.01462476,119590.0,119580.0,0.71960118]
[1752691247318,0.0397092,119590.0,119580.0,0.71960118]
[1752691247978,0.0397092,119590.0,119580.0,0.56118118]
[1752691248182,0.03134751,119590.0,119580.0,0.68808118]
[1752691248569,0.03134744,119590.0,119580.0,0.68808118]
[1752691248788,0.01462476,119590.0,119580.0,0.68808118]
[1752691248985,0.01662476,119590.0,119580.0,1.11180173]
[1752691249396,0.00208391,119590.0,119580.0,2.49129173]
[1752691249592,0.00208391,119590.0,119580.0,2.09977118]
[1752691249772,0.00208391,119590.0,119580.0,5.32338401]
[1752691251418,8.391e-05,119590.0,119580.0,4.93186346]
[1752691251835,8.391e-05,119590.0,119580.0,5.32438401]
[1752691252264,8.391e-05,119590.0,119580.0,1.19831201]
[1752691252471,8.391e-05,119590.0,119580.0,5.32438401]
[1752691254918,8.391e-05,119590.0,119580.0,4.93286346]
[1752691255120,8.391e-05,119590.0,119580.0,5.32438401]
[1752691255530,8.391e-05,119590.0,119580.0,5.18218401]
[1752691255761,8.391e-05,119590.0,119580.0,5.32430401]
[1752691255987,8.391e-05,119590.0,119580.0,4.93278346]
[1752691256216,8.391e-05,119590.0,119580.0,3.46866446]
[1752691256451,8.391e-05,119590.0,119580.0,4.83636946]
[1752691256704,8.391e-05,119590.0,119580.0,5.22789001]
[1752691256918,8.391e-05,119590.0,119580.0,4.35673346]
[1752691257138,8.391e-05,119590.0,119580.0,3.74231501]
[1752691257565,8.391e-05,119590.0,119580.0,4.77166801]
[1752691258249,8.391e-05,119590.0,119580.0,4.62954801]
[1752691258480,8.391e-05,119590.0,119580.0,4.77206801]
[1752691258719,8.391e-05,119590.0,119580.0,5.32470401]
[1752691258933,8.391e-05,119590.0,119580.0,4.93318346]
[1752691259375,8.391e-05,119590.0,119580.0,1.19863201]
[1752691259577,8.391e-05,119590.0,119580.0,5.32470401]
[1752691260405,8.391e-05,119590.0,119580.0,4.93318346]
[1752691260648,8.391e-05,119590.0,119580.0,5.32470401]
[1752691261100,8.391e-05,119590.0,119580.0,5.25630101]
[1752691261279,8.391e-05,119590.0,119580.0,5.25630001]
[1752691261478,8.391e-05,119590.0,119580.0,5.32470401]
[1752691261882,8.391e-05,119590.0,119580.0,4.15595746]
[1752691262257,8.391e-05,119590.0,119580.0,4.23644901]
[1752691262472,8.391e-05,119590.0,119580.0,4.16758201]
[1752691262690,8.391e-05,119590.0,119580.0,4.46111046]
[1752691262901,8.391e-05,119590.0,119580.0,3.39663046]
[1752691263111,8.391e-05,119590.0,119580.0,3.81317719]
[1752691263538,8.391e-05,119590.0,119580.0,5.33817019]
[1752691264643,8.391e-05,119590.0,119580.0,5.34973019]
[1752691265771,8.391e-05,119590.0,119580.0,4.95820964]
[1752691265941,8.391e-05,119590.0,119580.0,3.31076064]
[1752691266207,8.391e-05,119590.0,119580.0,3.70228119]
[1752691266873,8.391e-05,119590.0,119580.0,5.34973019]
[1752691267969,8.391e-05,119590.0,119580.0,0.83213764]
[1752691268186,8.391e-05,119590.0,119580.0,1.22365819]
[1752691268397,8.391e-05,119590.0,119580.0,5.34973019]
[1752691269023,8.391e-05,119590.0,119580.0,0.55836525]
[1752691269024,0.01058525,119590.0,119580.0,0.55836525]
[1752691269318,0.03646391,119590.0,119580.0,0.56672736]
[1752691269545,0.05318687,119590.0,119580.0,0.70908736]
[1752691269993,0.62866893,119590.0,119580.0,0.69236307]
[1752691270223,0.62866942,119590.0,119580.0,0.70072532]
[1752691270435,0.06154891,119590.0,119580.0,0.70068532]
[1752691270660,0.05318708,119590.0,119580.0,0.70904743]
[1752691270879,0.05318708,119590.0,119580.0,0.84374443]
[1752691271090,0.04482525,119590.0,119580.0,0.84374443]
[1752691271559,8.391e-05,119590.0,119580.0,1.25594498]
[1752691271782,0.00844525,119590.0,119580.0,0.86402443]
[1752691272048,0.00222391,119590.0,119580.0,1.24060498]
[1752691272456,8.391e-05,119590.0,119580.0,1.24060498]
[1752691273266,8.391e-05,119590.0,119580.0,0.84908443]
[1752691274442,8.391e-05,119590.0,119580.0,1.24060498]
[1752691277235,8.391e-05,119590.0,119580.0,3.09589098]
[1752691277456,8.391e-05,119590.0,119580.0,2.86202798]
[1752691277663,8.391e-05,119590.0,119580.0,2.47050743]
[1752691278086,8.391e-05,119590.0,119580.0,2.44457743]
[1752691278296,8.391e-05,119590.0,119580.0,2.24692843]
[1752691278686,8.391e-05,119590.0,119580.0,2.49596898]
[1752691278917,8.391e-05,119590.0,119580.0,2.63828898]
[1752691280138,8.391e-05,119590.0,119580.0,2.24676843]
[1752691280350,8.391e-05,119590.0,119580.0,2.63828898]
[1752691280693,8.391e-05,119590.0,119580.0,2.49596898]
[1752691280916,8.391e-05,119590.0,119580.0,2.63816898]
[1752691281342,8.391e-05,119590.0,119580.0,2.75537926]
[1752691281551,8.391e-05,119590.0,119580.0,5.34891026]
[1752691281905,8.391e-05,119590.0,119580.0,4.95738971]
[1752691282111,8.391e-05,119590.0,119580.0,5.34891026]
[1752691282720,8.391e-05,119590.0,119580.0,5.20671026]
[1752691282936,8.391e-05,119590.0,119580.0,1.61149171]
[1752691283157,8.391e-05,119590.0,119580.0,1.66115171]
[1752691283367,8.391e-05,119590.0,119580.0,1.57564143]
[1752691283577,8.391e-05,119590.0,119580.0,0.99512798]
[1752691283779,8.391e-05,119590.0,119580.0,1.13760798]
[1752691283961,8.391e-05,119590.0,119580.0,5.26367998]
[1752691284481,8.391e-05,119590.0,119580.0,3.34811898]
[1752691284623,8.391e-05,119590.0,119580.0,1.13760798]
[1752691284833,8.391e-05,119590.0,119580.0,5.26363998]
[1752691285241,8.391e-05,119590.0,119580.0,1.13756798]
[1752691285444,8.391e-05,119590.0,119580.0,5.26363998]
[1752691286274,8.391e-05,119590.0,119580.0,4.87211943]
[1752691286481,0.03326066,119610.0,119600.0,0.53230684]
[1752691286690,0.04373067,119610.0,119600.0,0.67446684]
[1752691286895,0.05883067,119610.0,119600.0,0.67446684]
[1752691287316,0.05047066,119610.0,119600.0,0.67446684]
[1752691287531,0.06707066,119610.0,119600.0,0.67446684]
[1752691287735,0.07016066,119610.0,119600.0,0.67446684]
[1752691287950,0.07852081,119610.0,119600.0,0.67446684]
[1752691288569,0.0952416,119610.0,119600.0,0.67446684]
[1752691288780,0.0952416,119610.0,119600.0,0.67446691]
[1752691288982,0.62889228,119610.0,119600.0,0.64962408]
[1752691289182,0.23737173,119610.0,119600.0,0.67470691]
[1752691289387,0.07852214,119610.0,119600.0,0.67470691]
[1752691289610,0.63925278,119610.0,119600.0,0.66634613]
[1752691290010,0.63089242,119610.0,119600.0,0.66634627]
[1752691290230,0.22252599,119600.0,119590.0,0.00665525]
[1752691290443,1.09627737,119600.0,119590.0,0.00665525]
[1752691290895,1.14627737,119600.0,119590.0,0.00665525]
[1752691291504,1.14627737,119600.0,119590.0,0.14893525]
[1752691291720,1.14627737,119600.0,119590.0,0.00665525]
[1752691294565,0.75475682,119600.0,119590.0,0.00665525]
[1752691295465,0.36323627,119600.0,119590.0,0.00665525]
[1752691295674,0.75475682,119600.0,119590.0,0.00665525]
[1752691298412,1.14627737,119600.0,119590.0,0.00665525]
[1752691298881,0.36323627,119600.0,119590.0,0.00665525]
[1752691299102,1.14627737,119600.0,119590.0,0.00665525]
[1752691301472,0.75475682,119600.0,119590.0,0.00665525]
[1752691301675,0.89691682,119600.0,119590.0,0.00665525]
[1752691302685,0.89691682,119600.0,119590.0,0.00165525]
[1752691303430,0.89687682,119600.0,119590.0,0.00165525]
[1752691303965,0.75475682,119600.0,119590.0,0.00165525]
[1752691304168,0.89691682,119600.0,119590.0,0.00165525]
[1752691305530,0.89691682,119600.0,119590.0,0.00131909]
[1752691307195,0.50539627,119600.0,119590.0,0.00131909]
[1752691307408,0.89691682,119600.0,119590.0,0.00131909]
[1752691308120,0.50535627,119600.0,119590.0,0.00131909]
[1752691308341,0.31323627,119600.0,119590.0,0.16855715]
[1752691308568,0.10434163,119600.0,119590.0,0.19878201]
[1752691308830,0.01036001,119610.0,119600.0,0.22310684]
[1752691308997,0.0416715,119610.0,119600.0,0.3589862]
[1752691309240,0.20888201,119610.0,119600.0,0.14726]
[1752691309452,0.18799101,119610.0,119600.0,0.14424]
[1752691309679,0.20253186,119610.0,119600.0,0.14424]
[1752691309865,0.59405241,119610.0,119600.0,0.14424]
[1752691310277,0.59405241,119610.0,119600.0,0.31146408]
[1752691310489,0.59405241,119610.0,119600.0,0.17770528]
[1752691310692,0.59405241,119610.0,119600.0,0.31982528]
[1752691310901,0.20253186,119610.0,119600.0,0.32818641]
[1752691311937,0.04368178,119610.0,119600.0,0.35326889]
[1752691312148,0.05204221,119610.0,119600.0,0.35326889]
[1752691312356,0.05003221,119610.0,119600.0,0.35628889]
[1752691312564,0.033311,119610.0,119600.0,0.37268889]
[1752691312797,0.033311,119610.0,119600.0,0.72888889]
[1752691312982,0.03331114,119610.0,119600.0,0.72888889]
[1752691313194,0.02495099,119610.0,119600.0,0.72888889]
[1752691313332,0.0020502,119610.0,119600.0,1.18776085]
[1752691313537,0.0020502,119610.0,119600.0,1.66479168]
[1752691314575,0.002,119630.0,119620.0,0.56367468]
[1752691314743,0.0020502,119630.0,119620.0,1.09939523]
[1752691314957,0.0020502,119630.0,119620.0,1.17823097]
[1752691315184,1e-08,119630.0,119620.0,1.17823097]
[1752691315384,0.00128807,119650.0,119640.0,0.53224253]
[1752691315607,0.00133826,119650.0,119640.0,1.17487882]
[1752691315800,0.00133826,119650.0,119640.0,1.17789882]
[1752691316229,0.00133826,119650.0,119640.0,0.79607281]
[1752691317749,0.00133826,119650.0,119640.0,1.17789882]
[1752691318123,0.00133826,119650.0,119640.0,1.37849882]
[1752691319581,0.00133826,119650.0,119640.0,1.39966261]
[1752691319960,0.00133826,119650.0,119640.0,0.85589281]
[1752691320166,0.00133826,119650.0,119640.0,1.23771882]
[1752691320434,0.00133826,119650.0,119640.0,1.37971882]
[1752691320942,0.00133826,119650.0,119640.0,1.23771882]
[1752691321280,0.00133826,119650.0,119640.0,1.37971882]
[1752691321925,0.00133826,119650.0,119640.0,0.85589281]
[1752691322300,0.00133826,119650.0,119640.0,0.99785281]
[1752691322537,0.00133826,119650.0,119640.0,0.51589281]
[1752691322764,0.00133826,119650.0,119640.0,0.57234253]
[1752691322946,6e-05,119660.0,119650.0,1.32349722]
[1752691323149,6e-05,119660.0,119650.0,1.32863722]
[1752691323666,0.02713977,119660.0,119650.0,1.66561722]
[1752691323855,0.04168062,119660.0,119650.0,1.65514]
[1752691324085,0.05003756,119660.0,119650.0,1.80545729]
[1752691324414,0.70108132,119660.0,119650.0,1.27323074]
[1752691324818,0.70108132,119660.0,119650.0,1.61323074]
[1752691325358,0.53394109,119660.0,119650.0,1.78038493]
[1752691325478,0.1301709,119660.0,119650.0,1.80545736]
[1752691325683,6e-05,119660.0,119650.0,1.81895458]
[1752691325885,0.00841638,119660.0,119650.0,1.81895458]
[1752691326099,0.01878283,119660.0,119650.0,1.81593465]
[1752691326304,6e-05,119660.0,119650.0,1.82731187]
[1752691326537,6e-05,119660.0,119650.0,1.85871187]
[1752691326743,6e-05,119660.0,119650.0,1.82731187]
[1752691328350,0.00207,119660.0,119650.0,1.82429187]
[1752691328584,0.00207,119660.0,119650.0,1.82425187]
[1752691329169,0.01042638,119660.0,119650.0,1.82425187]
[1752691329612,0.02713977,119660.0,119650.0,1.65726]
[1752691329821,0.03549671,119660.0,119650.0,1.81589451]
[1752691330042,0.21717842,119660.0,119650.0,1.65514014]
[1752691330302,0.21717842,119660.0,119650.0,1.80537764]
[1752691330512,0.21717842,119660.0,119650.0,1.78866257]
[1752691330513,0.20882183,119660.0,119650.0,1.78866257]
[1752691330723,0.20344503,119660.0,119650.0,1.78866257]
[1752691330924,0.20344503,119660.0,119650.0,1.79702014]
[1752691331139,0.20344503,119660.0,119650.0,1.80537757]
[1752691331358,0.20344503,119660.0,119650.0,1.81373493]
[1752691331577,0.20046503,119660.0,119650.0,1.81373493]
[1752691331975,0.20046503,119660.0,119650.0,1.66349757]
[1752691332177,0.20046503,119660.0,119650.0,1.81373507]
[1752691332635,0.02496758,119660.0,119650.0,1.82209243]
[1752691332845,0.0416809,119660.0,119650.0,1.81373507]
[1752691333080,0.05003784,119660.0,119650.0,1.81369507]
[1752691333293,0.0416809,119660.0,119650.0,1.82205201]
[1752691333506,0.05003784,119660.0,119650.0,1.82205208]
[1752691333989,0.0333241,119660.0,119650.0,1.82205208]
[1752691334424,0.01661085,119660.0,119650.0,1.81369479]
[1752691334637,0.0249673,119660.0,119650.0,1.82723201]
[1752691334862,0.02496723,119660.0,119650.0,1.82723201]
[1752691335086,0.01661085,119660.0,119650.0,1.82723201]
[1752691335313,0.02496723,119660.0,119650.0,1.82723201]
[1752691335544,0.01661085,119660.0,119650.0,1.82723201]
[1752691335771,0.02496723,119660.0,119650.0,1.82723201]
[1752691335998,6e-05,119660.0,119650.0,1.85903201]
[1752691336980,0.01873297,119660.0,119650.0,1.80216]
[1752691337207,0.0187329,119660.0,119650.0,1.81583465]
[1752691337431,0.00202,119660.0,119650.0,1.81583465]
[1752691337635,6e-05,119660.0,119650.0,1.81887465]
[1752691337880,0.01037652,119660.0,119650.0,1.81887465]
[1752691338875,0.00202,119660.0,119650.0,1.81887465]
[1752691339133,6e-05,119660.0,119650.0,1.81887465]
[1752691339383,0.00841638,119660.0,119650.0,1.81887465]
[1752691339626,6e-05,119660.0,119650.0,1.81887465]
[1752691340122,0.00841638,119660.0,119650.0,1.81887465]
[1752691340352,6e-05,119660.0,119650.0,1.81887465]
[1752691341215,0.00841645,119660.0,119650.0,1.81887465]
[1752691341430,6e-05,119660.0,119650.0,1.81887465]
[1752691342550,0.01677304,119660.0,119650.0,1.81887465]
[1752691342990,0.00841645,119660.0,119650.0,1.81887465]
[1752691343217,0.01677304,119660.0,119650.0,1.81887465]
[1752691344297,0.00841638,119660.0,119650.0,1.81879465]
[1752691345374,0.01677283,119660.0,119650.0,1.81879465]
[1752691347139,0.03348608,119660.0,119650.0,1.81879472]
[1752691347357,0.03544608,119660.0,119650.0,1.82411208]
[1752691347564,0.03544608,119660.0,119650.0,1.82411173]
[1752691347735,0.02708935,119660.0,119650.0,1.82715173]
[1752691348016,0.01677283,119660.0,119650.0,1.82715173]
[1752691348233,0.02512949,119660.0,119650.0,1.81875451]
[1752691348452,0.01873283,119660.0,119650.0,1.82711173]
[1752691349165,0.01873283,119660.0,119650.0,1.82707173]
[1752691349395,0.03544608,119660.0,119650.0,1.82707173]
[1752691349573,0.02708935,119660.0,119650.0,1.82707173]
[1752691349805,0.03544594,119660.0,119650.0,1.82707173]
[1752691349964,0.01873283,119660.0,119650.0,1.82707173]
[1752691350171,0.02708942,119660.0,119650.0,1.82707173]
[1752691350746,0.43259543,119660.0,119650.0,1.64056493]
[1752691350926,0.44406216,119660.0,119650.0,1.80517742]
[1752691351127,0.61120337,119660.0,119650.0,1.79678013]
[1752691351330,0.71190033,119660.0,119650.0,1.47127074]
[1752691351543,0.71190033,119660.0,119650.0,1.13127074]
[1752691351773,0.22155274,119650.0,119640.0,1.44007812]
[1752691351970,0.30884023,119660.0,119650.0,0.56188376]
[1752691352177,0.39631051,119660.0,119650.0,0.56188376]
[1752691352386,0.78727567,119660.0,119650.0,0.72584867]
[1752691352833,0.25778051,119660.0,119650.0,0.72584867]
[1752691353038,0.64874567,119660.0,119650.0,0.72584867]
[1752691353477,0.69874567,119660.0,119650.0,0.72584867]
[1752691353891,0.71328652,119660.0,119650.0,0.72584867]
[1752691354853,0.74468652,119660.0,119650.0,0.72584867]
[1752691359164,1.13565168,119660.0,119650.0,0.72584867]
[1752691361175,1.52565168,119660.0,119650.0,0.33877782]
[1752691361383,0.26309504,119650.0,119640.0,0.33877782]
[1752691361597,1.13249564,119650.0,119640.0,0.33877782]
[1752691361806,1.13560564,119650.0,119640.0,0.33877782]
[1752691362036,1.27712564,119650.0,119640.0,0.33877782]
[1752691362248,1.13560564,119650.0,119640.0,0.33877782]
[1752691362460,1.27712564,119650.0,119640.0,0.33877782]
[1752691363524,1.22712564,119650.0,119640.0,0.33877782]
[1752691363963,1.27712564,119650.0,119640.0,0.33877782]
[1752691368267,1.27708564,119650.0,119640.0,0.33877782]
[1752691368687,1.13560564,119650.0,119640.0,0.33877782]
[1752691368894,0.27146728,119640.0,119630.0,5.019e-05]
[1752691369100,1.14427788,119640.0,119630.0,5.019e-05]
[1752691369316,1.08584717,119640.0,119630.0,5.019e-05]
[1752691369538,1.09420543,119640.0,119630.0,5.019e-05]
[1752691371295,0.27146245,119640.0,119630.0,0.00215019]
[1752691371510,0.00835715,119650.0,119640.0,0.18387791]
[1752691371718,0.41609514,119660.0,119650.0,0.16715419]
[1752691371929,0.41609514,119660.0,119650.0,0.31905183]
[1752691371930,0.5161462,119660.0,119650.0,0.31905183]
[1752691372136,0.50996222,119660.0,119650.0,0.35340189]
[1752691372348,0.11899706,119660.0,119650.0,0.4207533]
[1752691372562,0.50996222,119660.0,119650.0,0.45460081]
[1752691372779,0.53286001,119660.0,119650.0,0.45460081]
[1752691372979,0.53286001,119660.0,119650.0,0.45460088]
[1752691373186,0.53286001,119660.0,119650.0,0.46295845]
[1752691373394,0.5077894,119660.0,119650.0,0.46295845]
[1752691373604,0.48489189,119660.0,119650.0,0.47127581]
[1752691373821,0.48489196,119660.0,119650.0,0.81963303]
[1752691374035,0.12518104,119660.0,119650.0,0.81127588]
[1752691374250,0.5161462,119660.0,119650.0,0.81127595]
[1752691374465,0.68328643,119660.0,119650.0,0.78620324]
[1752691374700,0.67707026,119660.0,119650.0,0.70744413]
[1752691374914,0.67493026,119660.0,119650.0,0.71049413]
[1752691375136,0.12518188,119660.0,119650.0,0.7188517]
[1752691375355,0.50710856,119660.0,119650.0,0.71885177]
[1752691376033,0.67424879,119660.0,119650.0,0.71049413]
[1752691376254,0.50710751,119660.0,119650.0,0.74392419]
[1752691376466,0.12518083,119660.0,119650.0,0.74392426]
[1752691376682,0.12518083,119660.0,119650.0,0.7355669]
[1752691376884,0.14189471,119660.0,119650.0,0.72720947]
[1752691377102,0.14189471,119660.0,119650.0,0.73556704]
[1752691377304,0.1335377,119660.0,119650.0,0.72720947]
[1752691377509,0.1335377,119660.0,119650.0,0.73556704]
[1752691378163,0.30903494,119660.0,119650.0,0.72720947]
[1752691378398,0.66803192,119660.0,119650.0,0.38328994]
[1752691378629,0.66803192,119660.0,119650.0,0.67400413]
[1752691378845,0.66803192,119660.0,119650.0,0.69256413]
[1752691379050,0.1273216,119660.0,119650.0,0.72507934]
[1752691379251,0.67424851,119660.0,119650.0,0.71977183]
[1752691379456,0.1251816,119660.0,119650.0,0.73648704]
[1752691379676,0.10846779,119660.0,119650.0,0.74484447]
[1752691379911,0.50710765,119660.0,119650.0,0.75320183]
[1752691380121,0.11682417,119660.0,119650.0,0.75320135]
[1752691380331,0.10011113,119660.0,119650.0,0.75320135]
[1752691380540,0.10846751,119660.0,119650.0,0.75320135]
[1752691380747,0.10846751,119660.0,119650.0,0.72812934]
[1752691380748,0.1168241,119660.0,119650.0,0.72812934]
[1752691380980,0.1168241,119660.0,119650.0,0.74484399]
[1752691381413,6e-05,119660.0,119650.0,0.74484399]
[1752691382015,6e-05,119660.0,119650.0,0.79484398]
[1752691387481,6e-05,119660.0,119650.0,0.76935404]
[1752691388256,6e-05,119660.0,119650.0,0.76919404]
[1752691389077,6e-05,119660.0,119650.0,0.62803404]
[1752691389302,0.00306,119660.0,119650.0,0.76919404]
[1752691389435,0.00306,119660.0,119650.0,0.62803404]
[1752691389638,0.01141645,119660.0,119650.0,0.76915404]
[1752691389839,0.01977311,119660.0,119650.0,0.71915412]
[1752691390066,0.00306,119660.0,119650.0,0.72751134]
[1752691390276,0.4162405,119660.0,119650.0,0.69408183]
[1752691390481,0.59173809,119660.0,119650.0,0.70243926]
[1752691390858,0.20981141,119660.0,119650.0,0.72793123]
[1752691391305,0.20981141,119660.0,119650.0,0.5784538]
[1752691391521,0.20981183,119660.0,119650.0,0.73628873]
[1752691391932,0.03431459,119660.0,119650.0,0.74464602]
[1752691392250,0.01760085,119660.0,119650.0,0.75300324]
[1752691392503,0.04267076,119660.0,119650.0,0.75296324]
[1752691392934,0.03431396,119660.0,119650.0,0.75296324]
[1752691393146,0.0510277,119660.0,119650.0,0.74460602]
[1752691393358,0.04267076,119660.0,119650.0,0.73624873]
[1752691393576,0.04267076,119660.0,119650.0,0.75296324]
[1752691393822,0.04267076,119660.0,119650.0,0.74460602]
[1752691394046,0.04267076,119660.0,119650.0,0.60352602]
[1752691394047,0.0259573,119660.0,119650.0,0.60352602]
[1752691394260,0.04267069,119660.0,119650.0,0.73624873]
[1752691394473,0.04267062,119660.0,119650.0,0.74460602]
[1752691394707,0.04267055,119660.0,119650.0,0.75296324]
[1752691394932,0.05938422,119660.0,119650.0,0.73624873]
[1752691395183,0.44202345,119660.0,119650.0,0.74460602]
[1752691395426,0.45038032,119660.0,119650.0,0.74460602]
[1752691395651,0.44202345,119660.0,119650.0,0.74460595]
[1752691395874,0.44202345,119660.0,119650.0,0.73624873]
[1752691396085,0.45038032,119660.0,119650.0,0.59516873]
[1752691396318,0.45038032,119660.0,119650.0,0.5784538]
[1752691396319,0.6091641,119660.0,119650.0,0.5784538]
[1752691396542,0.68321113,119660.0,119650.0,0.50649197]
[1752691396761,0.68321113,119660.0,119650.0,0.16649197]
[1752691396981,0.17551176,119650.0,119640.0,0.18710798]
[1752691397208,0.56650793,119650.0,119640.0,0.68583139]
[1752691397435,0.66855906,119650.0,119640.0,0.34204]
[1752691397681,0.66855906,119650.0,119640.0,0.48096]
[1752691397900,0.66855906,119650.0,119640.0,0.65648657]
[1752691398118,0.66020149,119650.0,119640.0,0.483]
[1752691398338,0.66020149,119650.0,119640.0,0.34204]
[1752691398564,0.26920532,119650.0,119640.0,0.65016817]
[1752691398784,0.66020149,119650.0,119640.0,0.6585265]
[1752691399016,0.66020149,119650.0,119640.0,0.65016817]
[1752691399453,0.66345149,119650.0,119640.0,0.48096]
[1752691399676,0.66345149,119650.0,119640.0,0.34]
[1752691399893,0.19006728,119640.0,119630.0,0.37245019]
[1752691400124,0.58106345,119640.0,119630.0,0.68259233]
[1752691400358,0.66857373,119640.0,119630.0,0.34209019]
[1752691400578,0.66857373,119640.0,119630.0,0.48301019]
[1752691400771,0.66857373,119640.0,119630.0,0.65019233]
[1752691401019,0.66857373,119640.0,119630.0,0.65855143]
[1752691401246,0.66857373,119640.0,119630.0,0.66691046]
[1752691401497,0.66857373,119640.0,119630.0,0.65019233]
[1752691401954,0.66857373,119640.0,119630.0,0.65855136]
[1752691402176,0.66857373,119640.0,119630.0,0.66691032]
[1752691402442,0.66857373,119640.0,119630.0,0.68259233]
[1752691402683,0.68529018,119640.0,119630.0,0.68259233]
[1752691403426,0.67693213,119640.0,119630.0,0.34005019]
[1752691403653,0.68018213,119640.0,119630.0,0.14093019]
[1752691404077,0.68018213,119640.0,119630.0,0.30811233]
[1752691404327,0.68018213,119640.0,119630.0,0.16548407]
[1752691404541,0.67182387,119640.0,119630.0,0.16548407]
[1752691405602,1.09492004,119640.0,119630.0,0.02460407]
[1752691405794,1.23576004,119640.0,119630.0,5.019e-05]
[1752691405997,0.84476387,119640.0,119630.0,5.019e-05]
[1752691406684,1.23576004,119640.0,119630.0,5.019e-05]
[1752691407095,0.84476387,119640.0,119630.0,5.019e-05]
[1752691407957,0.4537677,119640.0,119630.0,5.019e-05]
[1752691408162,0.70392387,119640.0,119630.0,5.019e-05]
[1752691408380,0.003,119670.0,119660.0,0.02507019]
[1752691408602,0.003,119670.0,119660.0,0.80670658]
[1752691408823,0.0032,119690.0,119680.0,0.56487828]
[1752691409052,0.0032,119690.0,119680.0,0.56691828]
[1752691409296,0.0032,119690.0,119680.0,0.59576319]
[1752691409746,0.0032,119690.0,119680.0,0.64576318]
[1752691410188,0.0032502,119690.0,119680.0,0.64576318]
[1752691411571,0.0032502,119690.0,119680.0,0.78652318]
[1752691413180,0.0032,119710.0,119700.0,0.19214617]
[1752691413396,0.01205489,119710.0,119700.0,0.36686617]
[1752691413614,0.003702,119710.0,119700.0,0.37009617]
[1752691414058,0.01205489,119710.0,119700.0,0.37009617]
[1752691414298,0.02876102,119710.0,119700.0,0.35338851]
[1752691414523,0.29788341,119710.0,119700.0,0.30980437]
[1752691414734,0.29788341,119710.0,119700.0,0.30776437]
[1752691415822,0.28953024,119710.0,119700.0,0.30772437]
[1752691416756,0.28953024,119710.0,119700.0,0.16912437]
[1752691416991,0.28953024,119710.0,119700.0,0.30976437]
[1752691417440,0.28953024,119710.0,119700.0,0.17747858]
[1752691417676,0.28953024,119710.0,119700.0,0.30972437]
[1752691418064,0.28953024,119710.0,119700.0,0.16912437]
[1752691418534,0.28953024,119710.0,119700.0,0.30972437]
[1752691419222,0.28953024,119710.0,119700.0,0.31807858]
[1752691419677,0.12881285,119710.0,119700.0,0.32966258]
[1752691419846,0.12881285,119710.0,119700.0,0.32966272]
[1752691419983,0.30423679,119710.0,119700.0,0.32130858]
[1752691420191,0.30423679,119710.0,119700.0,0.32966272]
[1752691420395,0.30423679,119710.0,119700.0,0.31295437]
[1752691420396,0.29588376,119710.0,119700.0,0.31295437]
[1752691420620,0.00653333,119730.0,119720.0,0.19211408]
[1752691420834,0.0065835,119730.0,119720.0,0.7425392]
[1752691421058,0.0002,119740.0,119730.0,0.22339803]
[1752691421266,0.0002,119740.0,119730.0,0.22866803]
[1752691421466,0.00453333,119750.0,119740.0,0.19208198]
[1752691421691,0.00453333,119750.0,119740.0,0.45100011]
[1752691421692,0.00458348,119750.0,119740.0,0.45100011]
[1752691421909,0.01293358,119750.0,119740.0,0.35246991]
[1752691422125,0.00458348,119750.0,119740.0,0.41917197]
[1752691422758,0.01293358,119750.0,119740.0,0.41082104]
[1752691422958,0.02128375,119750.0,119740.0,0.42594669]
[1752691423272,0.00458348,119750.0,119740.0,0.41917197]
[1752691423494,0.00458348,119750.0,119740.0,0.45100011]
[1752691423927,0.040055,119750.0,119740.0,0.30958856]
[1752691424145,0.040055,119750.0,119740.0,0.31793998]
[1752691424773,0.20707017,119750.0,119740.0,0.33484683]
[1752691424950,0.19871993,119750.0,119740.0,0.33484683]
[1752691425361,0.19871993,119750.0,119740.0,0.43617931]
[1752691425362,0.02128389,119750.0,119740.0,0.43617931]
[1752691425565,0.02963434,119750.0,119740.0,0.44453031]
[1752691425763,0.02128389,119750.0,119740.0,0.31240124]
[1752691425970,0.02963434,119750.0,119740.0,0.44449031]
[1752691426218,0.20500024,119750.0,119740.0,0.36943683]
[1752691426358,0.19871993,119750.0,119740.0,0.33480683]
[1752691426953,0.19871993,119750.0,119740.0,0.34315825]
[1752691427152,0.02963532,119750.0,119740.0,0.3545396]
[1752691427374,0.02963469,119750.0,119740.0,0.36289088]
[1752691427576,0.03798535,119750.0,119740.0,0.36289088]
[1752691427777,0.03798535,119750.0,119740.0,0.3545396]
[1752691428391,0.20499996,119750.0,119740.0,0.33783683]
[1752691428745,0.19664972,119750.0,119740.0,0.33783683]
[1752691429166,0.5782018,119750.0,119740.0,0.33783683]
[1752691429368,0.56985135,119750.0,119740.0,0.33783683]
[1752691429576,0.57192135,119750.0,119740.0,0.33480683]
[1752691431062,0.57192135,119750.0,119740.0,0.19436683]
[1752691432125,0.56985135,119750.0,119740.0,0.19739683]
[1752691433298,0.56357083,119750.0,119740.0,0.19739683]
[1752691433563,0.56357083,119750.0,119740.0,0.17209856]
[1752691433790,0.56357083,119750.0,119740.0,0.16906856]
[1752691435402,0.18201875,119750.0,119740.0,0.16906856]
[1752691435617,0.56357083,119750.0,119740.0,0.16906856]
[1752691436300,0.18201875,119750.0,119740.0,0.16906856]
[1752691436523,0.56357083,119750.0,119740.0,0.16906856]
[1752691437626,0.18201875,119750.0,119740.0,0.00204]
[1752691437831,0.56357083,119750.0,119740.0,0.02767934]
[1752691438259,0.18201875,119750.0,119740.0,0.16906856]
[1752691438534,0.56357083,119750.0,119740.0,0.00204]
[1752691438956,0.56357083,119750.0,119740.0,0.16906856]
[1752691439190,0.18201875,119750.0,119740.0,0.16906856]
[1752691439395,0.56357083,119750.0,119740.0,0.16906856]
[1752691440841,0.40490625,119750.0,119740.0,0.20480133]
[1752691441058,0.55188739,119750.0,119740.0,0.21315247]
[1752691441292,0.55188739,119750.0,119740.0,0.22875247]
[1752691441509,0.55188739,119750.0,119740.0,0.23710347]
[1752691441940,0.55188739,119750.0,119740.0,0.2454544]
[1752691442168,0.56023798,119750.0,119740.0,0.23710354]
[1752691442389,0.73560325,119750.0,119740.0,0.22040133]